bitfinex-derivatives/quotes_ETHF0:USTF0_20250828
["timestamp","ask_amount","ask_price","bid_price","bid_amount"]
[1756402175651,0.9472,4492.6,4492.3,3.2078]
[1756402175652,1.7878,4492.6,4492.5,1.1954435]
[1756402175842,0.94722,4492.4,4492.3,4.9602435]
[1756402176044,1.75292,4492.4,4492.3,5.4135435]
[1756402176248,1.75292,4492.4,4492.3,4.2181]
[1756402177639,0.40062,4492.4,4492.3,4.2181]
[1756402177842,0.40062,4492.4,4492.3,5.81714287]
[1756402178243,0.40062,4492.4,4492.3,4.2181]
[1756402178645,0.95322,4492.4,4492.3,4.2181]
[1756402178845,1.75892,4492.4,4492.3,4.2181]
[1756402179045,0.40062,4492.4,4492.3,4.2181]
[1756402180146,0.40062,4492.4,4492.3,4.61873]
[1756402180652,0.40062,4492.4,4492.3,4.2181]
[1756402182352,1.20632,4492.4,4492.3,4.2181]
[1756402182756,0.40062,4492.4,4492.3,4.2181]
[1756402183945,0.95322,4492.4,4492.3,4.2181]
[1756402184152,0.95323,4492.3,4492.2,1.99880447]
[1756402184352,0.95325,4492.1,4492.0,1.99880447]
[1756402184552,1.75895,4492.1,4492.0,0.9771]
[1756402186556,0.40065,4492.1,4492.0,0.9771]
[1756402186751,1.75895,4492.1,4492.0,0.9771]
[1756402186957,0.95325,4492.1,4492.0,0.9771]
[1756402187250,0.40065,4492.1,4492.0,0.9771]
[1756402187451,1.20635,4492.1,4492.0,0.9771]
[1756402187653,1.75895,4492.1,4492.0,0.9771]
[1756402193058,1.20637,4491.9,4491.8,5.20660447]
[1756402193358,0.40069,4491.7,4491.6,1.59992161]
[1756402193662,0.40071,4491.4,4491.3,3.2078]
[1756402193858,1.75901,4491.4,4491.3,3.2078]
[1756402194059,0.95333,4491.2,4491.1,1.99880447]
[1756402194260,1.75906,4490.9,4490.8,5.20660447]
[1756402194452,1.75906,4490.9,4490.8,3.2078]
[1756402195356,1.75906,4490.9,4490.8,4.1849]
[1756402197060,1.75906,4490.9,4490.8,3.7316]
[1756402197460,1.75906,4490.9,4490.8,3.2078]
[1756402197660,1.75906,4490.9,4490.8,3.7316]
[1756402197861,1.75906,4490.9,4490.8,4.1849]
[1756402200172,1.75906,4490.9,4490.8,3.2078]
[1756402200773,1.75906,4490.9,4490.8,3.7316]
[1756402201775,1.75906,4490.9,4490.8,4.1849]
[1756402202768,0.8057,4491.3,4491.2,0.4533]
[1756402202968,1.0017,4491.9,4491.4,0.40071]
[1756402203168,0.4007,4491.6,4491.5,4.5856]
[1756402203877,0.4007,4491.6,4491.5,4.1849]
[1756402204077,1.759,4491.6,4491.5,4.1849]
[1756402204271,0.9533,4491.5,4491.4,1.59675439]
[1756402204471,1.759,4491.5,4491.4,4.80455439]
[1756402204671,1.75902,4491.3,4491.2,1.59675439]
[1756402204871,0.40074,4491.1,4490.9,4.80455439]
[1756402205076,1.3583,4491.0,4490.9,3.2078]
[1756402205977,0.7811,4490.6,4490.5,1.59675439]
[1756402206277,0.5635,4490.0,4489.9,3.2078]
[1756402206467,1.3446,4490.0,4489.9,3.2078]
[1756402207180,1.3646,4490.0,4489.9,3.2078]
[1756402208970,1.3646,4490.0,4489.9,4.40431635]
[1756402210173,1.3646,4490.0,4489.9,3.2078]
[1756402212576,1.3646,4490.0,4488.2,2.8110219]
[1756402212577,1.74546,4489.7,4489.6,1.19651635]
[1756402212770,0.96438,4489.5,4489.4,3.2078]
[1756402212975,1.74548,4489.5,4489.4,3.2078]
[1756402213573,0.7811,4489.2,4489.1,1.19651635]
[1756402213875,1.3446,4489.0,4488.9,4.40431635]
[1756402214270,1.3446,4489.0,4488.9,3.2078]
[1756402214474,1.3446,4489.0,4488.9,4.1483]
[1756402215674,1.3446,4489.0,4488.9,3.7299]
[1756402216278,1.3446,4489.0,4488.9,0.5221]
[1756402216480,0.40094,4488.8,4488.6,0.4184]
[1756402216677,1.3446,4488.7,4488.6,0.9405]
[1756402216879,1.3446,4488.7,4488.4,3.2078]
[1756402216880,1.3446,4488.5,4488.4,1.19651635]
[1756402217079,0.401,4488.2,4488.1,2.13701635]
[1756402217382,1.74554,4488.8,4488.7,0.9405]
[1756402217574,1.74554,4488.8,4488.7,0.5221]
[1756402218084,0.40094,4488.8,4488.7,2.13701635]
[1756402218282,1.74548,4489.5,4489.4,0.5221]
[1756402218582,1.74548,4489.5,4489.4,0.9405]
[1756402218971,0.96444,4488.9,4488.8,0.9405]
[1756402219174,1.74554,4488.9,4488.8,0.9405]
[1756402219377,0.40093,4489.0,4488.9,0.4184]
[1756402219577,0.40093,4489.0,4488.9,0.9405]
[1756402220782,1.74553,4489.0,4488.9,0.9405]
[1756402221081,1.74553,4489.0,4488.9,0.5221]
[1756402221383,1.74553,4489.0,4488.9,0.9405]
[1756402221586,1.74556,4488.6,4488.5,4.40431635]
[1756402221786,1.74556,4488.6,4488.5,4.92641635]
[1756402221980,0.40096,4488.6,4488.5,4.92641635]
[1756402222285,0.40096,4488.6,4488.5,5.34481635]
[1756402222786,1.74556,4488.6,4488.5,4.1483]
[1756402223282,1.74556,4488.6,4488.5,5.34481635]
[1756402223686,0.40096,4488.6,4488.5,5.34481635]
[1756402226189,0.40096,4488.7,4488.6,1.34146]
[1756402226691,0.40096,4488.7,4488.6,0.9405]
[1756402226989,1.00225,4489.4,4489.1,0.9405]
[1756402227285,1.7455,4489.3,4489.2,0.9405]
[1756402229082,1.7455,4489.3,4489.2,0.5221]
[1756402230093,1.74551,4489.2,4489.1,3.2078]
[1756402232691,1.74554,4488.9,4488.8,1.71683162]
[1756402232996,1.74554,4488.9,4488.8,2.13523162]
[1756402233292,1.74554,4488.9,4488.8,0.9405]
[1756402234490,1.00234,4489.0,4488.6,4.80455439]
[1756402234692,1.00234,4489.0,4488.3,0.4184]
[1756402234693,0.40098,4488.4,4488.3,1.19853952]
[1756402234898,0.96448,4488.4,4488.2,1.19853952]
[1756402235192,0.401,4488.2,4488.1,3.2078]
[1756402235495,1.7456,4488.2,4488.1,3.7299]
[1756402235695,1.7456,4488.2,4488.1,4.1483]
[1756402236096,1.7456,4488.2,4488.1,3.7299]
[1756402237489,0.40103,4487.9,4487.8,1.59675439]
[1756402237693,0.40104,4487.7,4487.6,5.36495439]
[1756402237900,0.91294,4487.7,4487.6,5.36495439]
[1756402238197,1.72714,4487.7,4487.6,5.36495439]
[1756402238402,1.72714,4487.7,4487.6,4.80455439]
[1756402238596,1.72714,4487.7,4487.6,3.2078]
[1756402238792,4.21028,4488.4,4487.1,4.80455439]
[1756402238793,0.40108,4487.3,4487.1,4.80455439]
[1756402238999,1.3261,4487.2,4487.1,4.80455439]
[1756402239197,1.3261,4487.2,4487.1,4.1621]
[1756402239696,1.3261,4487.2,4487.1,3.2078]
[1756402240804,0.91301,4486.9,4486.7,1.19893453]
[1756402240997,4.22286,4487.2,4486.2,1.59675439]
[1756402240998,0.91307,4486.3,4486.2,0.5604]
[1756402241196,0.8142,4486.2,4486.1,3.2078]
[1756402241491,1.3261,4486.2,4486.1,4.40610439]
[1756402241906,1.3261,4486.2,4486.1,3.2078]
[1756402242404,0.5119,4485.6,4485.5,1.19830439]
[1756402242697,0.8142,4486.6,4485.5,1.19830439]
[1756402242899,0.40122,4485.8,4485.7,2.15172089]
[1756402243092,0.40122,4485.8,4485.7,5.35952089]
[1756402243296,0.40121,4485.8,4485.7,3.7682]
[1756402243903,0.40121,4485.8,4485.7,4.1621]
[1756402244500,0.8142,4486.2,4485.7,4.1621]
[1756402244803,1.3261,4486.6,4486.2,0.40117]
[1756402244998,0.40115,4486.6,4486.5,0.9543]
[1756402245403,1.72725,4486.6,4486.5,0.9543]
[1756402245798,1.72725,4486.6,4486.5,0.5604]
[1756402246304,1.00273,4487.2,4486.3,3.7682]
[1756402246305,1.72726,4486.4,4486.3,3.7682]
[1756402247106,1.72726,4486.4,4486.3,3.2078]
[1756402247501,1.72734,4485.5,4485.4,4.1621]
[1756402248804,0.40124,4485.5,4485.4,4.1621]
[1756402249600,0.4012,4486.0,4485.9,0.9543]
[1756402250301,0.4012,4486.0,4485.9,4.1621]
[1756402250697,1.2154,4486.0,4485.9,4.1621]
[1756402250903,1.7273,4486.0,4485.9,4.1621]
[1756402251605,1.7273,4486.0,4485.9,3.7682]
[1756402252704,1.7273,4486.0,4485.9,4.1621]
[1756402253208,1.7273,4486.0,4485.9,3.7682]
[1756402254009,1.72737,4485.2,4485.1,0.9543]
[1756402254613,0.91318,4485.0,4484.9,3.7682]
[1756402254906,1.72738,4485.0,4484.9,0.9543]
[1756402255299,0.91318,4485.0,4484.9,0.9543]
[1756402255512,0.40128,4485.0,4484.9,4.1621]
[1756402256411,0.40124,4485.5,4485.4,0.3939]
[1756402256612,0.40124,4485.5,4485.4,0.9543]
[1756402257312,1.72734,4485.5,4485.4,0.9543]
[1756402258910,0.40124,4485.5,4485.4,0.9543]
[1756402259112,0.8142,4485.9,4485.4,0.5604]
[1756402259414,0.40124,4485.5,4485.4,3.7682]
[1756402259807,0.40124,4485.5,4485.4,4.1621]
[1756402261212,1.72734,4485.5,4485.4,4.1621]
[1756402262217,0.40124,4485.5,4485.4,4.1621]
[1756402262416,1.72734,4485.5,4485.4,4.1621]
[1756402262618,0.91314,4485.5,4485.4,4.1621]
[1756402262816,0.40124,4485.5,4485.4,4.1621]
[1756402263009,0.91314,4485.5,4485.4,4.1621]
[1756402263211,0.40124,4485.5,4485.4,4.1621]
[1756402263413,1.72734,4485.5,4485.4,4.1621]
[1756402264026,1.72734,4485.5,4485.4,3.7682]
[1756402264312,1.72738,4485.0,4484.9,3.2078]
[1756402264515,0.40131,4484.7,4484.5,1.1969087]
[1756402264716,0.40131,4484.7,4484.1,0.49648354]
[1756402264717,0.5119,4484.4,4484.1,1.29949224]
[1756402264916,1.3261,4484.2,4484.1,0.10258354]
[1756402265323,5.3261,4484.2,4484.1,0.10258354]
[1756402265620,1.72753,4483.4,4483.3,0.00149728]
[1756402265814,1.72753,4483.4,4482.3,0.3939]
[1756402265815,0.8142,4482.4,4482.3,1.1969087]
[1756402266009,0.8142,4482.4,4482.3,2.0806087]
[1756402266221,0.8142,4482.4,4482.3,0.8837]
[1756402267022,1.3218,4482.4,4482.3,0.8837]
[1756402267613,0.40151,4482.5,4482.4,0.3659]
[1756402267813,0.40151,4482.5,4482.4,0.8837]
[1756402268319,1.73101,4482.5,4482.4,0.8837]
[1756402268820,0.4015,4482.6,4482.4,0.8837]
[1756402269019,0.9091,4482.6,4482.5,0.3659]
[1756402269315,0.40153,4482.3,4482.2,3.2078]
[1756402269517,0.90913,4482.3,4482.2,3.7256]
[1756402269716,1.3295,4482.5,4482.4,0.5178]
[1756402269915,1.3295,4482.5,4482.4,0.8837]
[1756402270624,1.3295,4482.5,4482.4,0.5178]
[1756402271013,1.3295,4482.3,4482.2,3.7256]
[1756402271421,0.4015,4482.6,4482.5,0.5178]
[1756402271621,0.4015,4482.6,4482.5,0.8799]
[1756402272323,0.8219,4483.4,4482.7,0.40149]
[1756402272516,0.8219,4483.5,4483.2,0.3621]
[1756402272716,0.5076,4483.4,4483.3,0.5178]
[1756402272924,1.3295,4483.4,4483.3,0.5178]
[1756402273623,1.3295,4483.4,4483.3,0.8799]
[1756402274023,1.3295,4483.4,4483.3,0.5178]
[1756402274225,1.3295,4483.1,4483.0,3.2078]
[1756402274424,1.73095,4483.1,4483.0,3.2078]
[1756402275324,1.73095,4483.1,4483.0,4.0877]
[1756402275921,3.2078,4484.1,4483.5,0.76352]
[1756402275922,0.8219,4484.0,4483.5,0.76352]
[1756402276123,1.3295,4484.0,4483.2,0.3621]
[1756402276329,0.40141,4483.6,4483.5,0.8799]
[1756402276628,0.90905,4483.2,4483.1,0.8799]
[1756402276824,0.90905,4483.2,4483.0,3.2078]
[1756402276825,0.8219,4483.8,4483.5,0.40142]
[1756402277028,0.40139,4483.9,4483.7,0.8799]
[1756402277332,1.00351,4483.7,4483.3,0.3621]
[1756402277532,0.90901,4483.6,4483.5,0.5178]
[1756402277826,1.73091,4483.6,4483.5,0.5178]
[1756402278032,0.40141,4483.6,4483.5,0.8799]
[1756402278631,1.22331,4483.6,4483.5,0.8799]
[1756402278829,1.73091,4483.6,4483.5,0.8799]
[1756402279439,1.73095,4483.2,4483.1,0.8799]
[1756402279630,0.40145,4483.2,4483.1,0.8799]
[1756402280532,1.73095,4483.2,4483.1,0.8799]
[1756402280732,0.8219,4483.1,4483.0,3.2078]
[1756402281035,1.3295,4483.1,4483.0,3.2078]
[1756402281728,0.40145,4483.2,4482.1,0.3621]
[1756402281729,1.73102,4482.4,4482.3,3.7256]
[1756402282236,1.73102,4482.4,4482.3,3.2078]
[1756402285840,1.22347,4481.8,4481.7,4.0877]
[1756402286741,1.73107,4481.8,4481.7,4.0877]
[1756402288840,0.40157,4481.8,4481.7,4.0877]
[1756402291444,0.40157,4481.8,4481.7,5.28424735]
[1756402292350,0.40157,4481.8,4481.7,4.0877]
[1756402293844,1.73107,4481.8,4481.7,4.0877]
[1756402294349,1.73107,4481.8,4481.7,5.68445439]
[1756402295244,1.73107,4481.8,4481.7,4.0877]
[1756402296750,1.73107,4481.8,4481.7,3.2078]
[1756402296950,1.73107,4481.8,4481.7,4.40854774]
[1756402297745,0.40159,4481.6,4481.5,0.60254774]
[1756402297946,0.5119,4480.9,4480.7,3.2078]
[1756402298146,0.91355,4480.9,4480.7,3.2078]
[1756402298552,0.91355,4480.9,4480.8,0.4933]
[1756402299054,0.91355,4480.9,4480.8,0.8307]
[1756402299253,0.7715,4480.8,4480.7,3.2078]
[1756402299456,1.2834,4480.8,4480.7,3.2078]
[1756402299651,1.2834,4480.8,4480.7,3.7011]
[1756402299858,1.2834,4480.8,4480.7,4.0385]
[1756402300046,0.40165,4480.9,4480.7,3.7011]
[1756402300250,0.40165,4480.9,4480.8,0.8307]
[1756402300646,1.17315,4480.9,4480.8,0.8307]
[1756402300950,0.40163,4481.2,4480.9,0.3374]
[1756402301256,0.40162,4481.3,4481.2,0.8307]
[1756402301645,0.40162,4481.3,4481.2,4.0385]
[1756402301851,0.40159,4481.6,4481.5,0.4933]
[1756402302053,0.40159,4481.6,4481.5,0.8307]
[1756402302253,0.40155,4482.0,4481.9,0.8307]
[1756402302752,1.17305,4482.0,4481.9,0.8307]
[1756402302952,1.68495,4482.0,4481.9,0.8307]
[1756402303448,1.68495,4482.0,4481.9,0.3374]
[1756402303656,1.68495,4482.0,4481.9,0.8307]
[1756402303853,0.7715,4483.1,4481.9,0.8307]
[1756402304055,0.5119,4482.3,4482.2,3.7011]
[1756402304255,1.68493,4482.3,4482.2,0.8307]
[1756402304556,1.68493,4482.3,4482.2,4.0385]
[1756402305148,0.40156,4481.9,4481.8,0.3374]
[1756402305352,1.68496,4481.9,4481.8,0.3374]
[1756402305553,1.68496,4481.9,4481.8,0.8307]
[1756402307654,0.4015,4482.6,4482.5,0.8307]
[1756402307953,1.173,4482.6,4482.5,4.0385]
[1756402308154,1.6849,4482.6,4482.5,4.0385]
[1756402311254,1.6849,4482.6,4482.5,3.7011]
[1756402311451,1.6849,4482.6,4482.5,3.2078]
[1756402311760,5.90799,4482.6,4482.5,3.2078]
[1756402312160,1.6849,4482.6,4482.5,3.7011]
[1756402312360,1.6849,4482.6,4482.5,4.0385]
[1756402312757,1.6849,4482.6,4482.5,3.7011]
[1756402312962,1.6849,4482.6,4482.5,4.0385]
[1756402314366,1.68484,4483.3,4483.2,0.4933]
[1756402314658,1.68484,4483.3,4483.2,0.8307]
[1756402315962,0.7715,4483.6,4483.2,3.7011]
[1756402316165,1.68477,4484.0,4483.9,0.8307]
[1756402316360,1.68477,4484.0,4483.9,0.4933]
[1756402316965,1.68477,4484.0,4483.9,0.8307]
[1756402317864,0.40137,4484.0,4483.9,2.0296513]
[1756402318060,1.17287,4484.0,4483.9,2.0296513]
[1756402318261,1.68477,4484.0,4483.9,2.0296513]
[1756402318568,0.40137,4484.0,4483.9,0.8307]
[1756402320065,1.17287,4484.0,4483.9,0.8307]
[1756402320260,0.40137,4484.0,4483.9,0.8307]
[1756402320466,3.2078,4484.7,4483.9,0.8307]
[1756402320467,0.40137,4484.1,4484.0,0.3374]
[1756402320660,0.40137,4484.1,4484.0,0.8307]
[1756402320862,1.68477,4484.1,4484.0,0.8307]
[1756402321266,1.68477,4484.1,4484.0,2.02764091]
[1756402321466,0.40137,4484.1,4484.0,2.02764091]
[1756402322064,0.40135,4484.3,4484.2,0.8307]
[1756402322369,0.40135,4484.3,4484.2,5.23497597]
[1756402322666,0.7715,4485.3,4484.4,0.3374]
[1756402322864,1.2834,4484.8,4484.7,3.7011]
[1756402323069,0.4013,4484.8,4484.7,5.23462506]
[1756402323270,1.6847,4484.8,4484.7,4.0385]
[1756402326170,1.6847,4484.8,4484.7,3.2078]
[1756402327575,0.91934,4484.4,4484.3,2.00042506]
[1756402327775,0.40134,4484.4,4484.3,5.20822506]
[1756402328470,1.18844,4484.4,4484.3,5.20822506]
[1756402329975,1.70644,4484.4,4484.3,5.20822506]
[1756402330271,1.70644,4484.4,4484.3,4.0121]
[1756402330677,0.40134,4484.4,4484.3,5.20822506]
[1756402330878,0.40134,4484.5,4484.4,0.3155]
[1756402331175,0.40134,4484.5,4484.4,1.99904614]
[1756402331380,0.40134,4484.5,4484.4,0.8043]
[1756402333478,35.3438,4486.0,4484.4,0.8043]
[1756402333479,0.4013,4484.8,4484.6,0.40132]
[1756402333679,0.4013,4484.8,4484.7,0.40131]
[1756402334779,0.40129,4485.0,4484.9,0.40129]
[1756402335079,0.40128,4485.0,4484.9,3.2078]
[1756402335670,0.40128,4485.0,4484.9,3.60909]
[1756402336276,0.518,4485.0,4484.5,1.19506972]
[1756402336480,0.518,4485.0,4484.4,3.2078]
[1756402336481,0.40133,4484.5,4484.4,4.40286972]
[1756402336778,1.70643,4484.5,4484.4,3.2078]
[1756402337377,0.91937,4484.1,4483.9,4.40286972]
[1756402337682,1.3051,4484.0,4483.9,3.2078]
[1756402338873,1.3051,4484.0,4483.4,3.2078]
[1756402338874,1.3051,4483.5,4483.4,3.2078]
[1756402339073,1.70652,4483.5,4483.4,3.2078]
[1756402339277,1.70655,4483.1,4483.0,1.19506972]
[1756402340276,0.40147,4482.9,4482.8,4.40286972]
[1756402340483,1.70657,4482.9,4482.8,4.40286972]
[1756402340689,1.70657,4482.9,4482.8,3.2078]
[1756402340880,4.91947,4482.9,4482.7,1.19506972]
[1756402341072,4.91947,4482.9,4482.3,3.2078]
[1756402341073,0.40151,4482.5,4482.4,1.19506972]
[1756402341274,0.40151,4482.5,4482.3,3.2078]
[1756402341275,1.70661,4482.5,4482.3,3.2078]
[1756402341473,0.7871,4482.4,4482.3,3.2078]
[1756402341677,1.3051,4482.4,4482.3,3.2078]
[1756402342180,5.3051,4482.4,4482.3,3.2078]
[1756402342479,0.91958,4481.7,4481.6,1.19506972]
[1756402342686,1.70668,4481.7,4481.5,4.40286972]
[1756402342884,1.3051,4481.6,4481.5,4.40286972]
[1756402343581,1.3051,4481.6,4481.5,3.2078]
[1756402345988,0.7871,4481.6,4481.5,3.2078]
[1756402346187,0.40158,4481.7,4481.5,3.2078]
[1756402346387,0.40158,4481.7,4481.6,1.19594827]
[1756402346585,0.40158,4481.7,4481.5,3.2078]
[1756402346884,0.40159,4481.7,4481.5,3.2078]
[1756402347888,0.40159,4481.7,4481.5,3.6094]
[1756402348082,0.40159,4481.7,4481.5,3.2078]
[1756402349389,0.40159,4481.7,4481.6,1.1950143]
[1756402349788,1.18869,4481.7,4481.6,1.1950143]
[1756402350190,0.7871,4481.6,4481.5,4.4028143]
[1756402350490,0.7871,4480.7,4480.6,1.1950143]
[1756402350690,0.7871,4480.7,4480.5,3.2078]
[1756402350691,1.70678,4480.6,4480.5,3.2078]
[1756402355486,0.40168,4480.6,4480.5,3.2078]
[1756402355893,1.18878,4480.6,4480.5,3.2078]
[1756402356397,0.40167,4480.7,4480.5,7.60949]
[1756402356594,0.40167,4480.7,4480.5,3.60949]
[1756402357297,0.40166,4480.9,4480.7,0.40166]
[1756402357595,0.40167,4480.7,4480.5,3.60948]
[1756402358197,0.7644,4480.6,4480.5,3.2078]
[1756402358593,1.2412,4480.6,4480.5,3.2078]
[1756402359193,0.40172,4480.1,4479.9,0.40174]
[1756402359488,0.40172,4480.1,4480.0,3.2078]
[1756402359697,0.40171,4480.3,4480.1,0.40172]
[1756402360793,0.4768,4480.3,4480.0,3.2078]
[1756402360994,1.64292,4480.1,4480.0,3.2078]
[1756402361696,0.40172,4480.1,4480.0,3.2078]
[1756402361898,0.40168,4480.6,4480.5,0.40168]
[1756402362097,0.40168,4480.6,4480.5,3.60948]
[1756402362293,0.40168,4480.6,4480.5,3.2078]
[1756402362500,1.64288,4480.6,4480.5,3.2078]
[1756402363496,0.40174,4479.9,4479.7,1.19205901]
[1756402363700,1.16614,4479.9,4479.8,3.2078]
[1756402364297,1.16614,4479.9,4479.8,4.39985901]
[1756402364495,1.16614,4479.9,4479.8,3.2078]
[1756402365297,1.16614,4479.9,4479.8,4.39985901]
[1756402366200,1.16614,4479.9,4479.8,3.2078]
[1756402366501,1.64294,4479.9,4479.8,4.40464675]
[1756402367298,1.64294,4479.9,4479.8,3.2078]
[1756402368197,1.64294,4479.9,4479.8,4.40563665]
[1756402370302,1.64294,4479.9,4479.8,3.2078]
[1756402374701,1.64294,4479.9,4479.8,4.40772685]
[1756402375708,0.4768,4479.9,4479.8,3.2078]
[1756402376000,1.64294,4479.9,4479.8,3.2078]
[1756402376805,1.64294,4479.9,4479.8,4.40791536]
[1756402377205,1.64294,4479.9,4479.8,3.2078]
[1756402377408,1.64294,4479.9,4479.8,4.40825386]
[1756402377609,1.64294,4479.9,4479.8,3.2078]
[1756402377801,5.86616001,4479.9,4479.8,3.2078]
[1756402378105,5.86616001,4479.9,4479.5,1.20045386]
[1756402378106,0.40177,4479.6,4479.5,1.20045386]
[1756402378306,1.64297,4479.6,4479.5,1.20045386]
[1756402379202,0.40179,4479.3,4479.2,3.2078]
[1756402379406,1.64299,4479.3,4479.2,3.2078]
[1756402380213,0.40177,4479.6,4479.2,7.2078]
[1756402380406,1.2412,4479.9,4479.4,1.60250545]
[1756402380605,0.7644,4479.9,4479.4,2.00428545]
[1756402380806,0.40177,4479.6,4479.4,2.00428545]
[1756402381405,0.40177,4479.6,4479.4,1.60250545]
[1756402382409,0.40177,4479.6,4479.4,2.00428545]
[1756402382806,0.40177,4479.6,4479.4,1.60250545]
[1756402383109,0.40177,4479.6,4479.4,2.00428545]
[1756402383313,0.40177,4479.6,4479.4,1.60250545]
[1756402384012,0.40177,4479.6,4479.5,1.60250545]
[1756402385405,0.40176,4479.8,4479.5,5.60250545]
[1756402385608,1.2412,4480.4,4479.8,0.40175]
[1756402385809,1.1661,4480.3,4480.1,1.20172183]
[1756402386009,0.7494,4480.2,4479.8,1.60229699]
[1756402386209,4.21197,4480.8,4479.7,3.60955]
[1756402386210,0.7494,4480.8,4479.9,1.60229699]
[1756402386409,1.62157,4480.7,4480.6,4.40952931]
[1756402386716,1.62157,4480.7,4480.6,3.2078]
[1756402390016,5.62157,4480.7,4480.6,3.2078]
[1756402391518,5.62157,4480.7,4480.6,4.41007061]
[1756402392114,5.62157,4480.7,4480.6,3.2078]
[1756402392622,1.62157,4480.7,4480.6,3.2078]
[1756402396522,1.62159,4480.5,4480.4,1.60229699]
[1756402396721,0.40172,4480.1,4480.0,0.32370699]
[1756402396919,1.00426,4480.4,4479.6,3.2078]
[1756402396920,0.87226,4479.7,4479.6,3.2078]
[1756402397225,0.87231,4479.1,4479.0,2.46850447]
[1756402397419,1.62171,4479.1,4479.0,3.18500447]
[1756402398115,1.62171,4479.1,4479.0,1.1862]
[1756402398329,1.62171,4479.1,4479.0,0.4697]
[1756402398529,0.7494,4479.0,4478.9,3.2078]
[1756402398724,1.2199,4479.0,4478.9,3.2078]
[1756402399025,1.2199,4479.0,4478.9,3.6775]
[1756402399327,1.2199,4479.0,4478.9,4.394]
[1756402404132,1.62172,4479.0,4478.9,4.394]
[1756402404728,0.87232,4479.0,4478.9,4.394]
[1756402405033,1.62172,4479.0,4478.9,4.394]
[1756402406039,0.40182,4479.0,4478.9,4.394]
[1756402407336,1.62172,4479.0,4478.9,4.394]
[1756402408335,1.62172,4479.0,4478.9,5.99595954]
[1756402409937,1.62172,4479.0,4478.9,4.394]
[1756402413341,1.62172,4479.0,4478.9,1.1862]
[1756402413538,1.62172,4479.0,4478.9,4.394]
[1756402420244,0.40181,4479.1,4479.0,1.1849]
[1756402420441,0.40181,4479.1,4479.0,2.7872457]
[1756402421244,0.40181,4479.1,4479.0,1.1849]
[1756402422442,0.4018,4479.3,4479.2,1.58669]
[1756402423342,3.9567,4479.9,4479.8,0.4814]
[1756402423642,4.86244,4479.9,4479.8,1.1849]
[1756402423841,1.65464,4479.9,4479.8,1.1849]
[1756402424645,1.15064,4479.9,4479.8,1.1849]
[1756402424846,0.40174,4479.9,4479.8,1.1849]
[1756402425644,1.65464,4479.9,4479.8,1.1849]
[1756402425844,1.65464,4479.9,4479.8,0.4814]
[1756402426545,0.90575,4479.8,4479.7,1.60358734]
[1756402426742,0.40177,4479.6,4479.5,1.60358734]
[1756402426952,1.65467,4479.5,4479.4,4.81138734]
[1756402428652,1.65467,4479.5,4479.4,5.29278734]
[1756402429155,1.65467,4479.5,4479.4,5.99628734]
[1756402429349,0.40177,4479.5,4479.4,4.3927]
[1756402430152,0.40177,4479.5,4479.4,4.79448]
[1756402430352,0.40177,4479.5,4479.4,4.3927]
[1756402432247,0.40177,4479.5,4479.4,4.79448]
[1756402432649,1.65467,4479.5,4479.4,4.81307963]
[1756402432947,0.40182,4479.0,4478.9,1.60527963]
[1756402433145,1.65472,4479.0,4478.9,1.60527963]
[1756402433342,1.0045,4479.3,4478.8,3.2078]
[1756402433343,1.65473,4478.9,4478.8,3.2078]
[1756402433750,3.2078,4479.4,4478.4,2.30877963]
[1756402433751,1.65476,4478.5,4478.4,2.30877963]
[1756402433945,1.65476,4478.5,4478.4,1.60527963]
[1756402434747,1.65476,4478.5,4478.4,2.08667963]
[1756402435044,1.65476,4478.5,4478.4,2.79017963]
[1756402435248,1.65476,4478.5,4478.4,2.08667963]
[1756402435553,1.65476,4478.5,4478.4,1.1849]
[1756402436252,1.65476,4478.5,4478.4,0.4814]
[1756402436854,1.65476,4478.5,4478.4,1.1849]
[1756402438049,1.65481,4478.0,4477.8,2.30877963]
[1756402438355,0.90593,4477.8,4477.7,3.6892]
[1756402438655,1.65483,4477.8,4477.7,3.6892]
[1756402439255,1.65483,4477.8,4477.7,3.2078]
[1756402439656,1.65483,4477.8,4477.0,1.99880447]
[1756402439657,0.90599,4477.1,4477.0,1.99880447]
[1756402439948,1.2529,4476.2,4476.1,0.7035]
[1756402440154,3.2078,4476.2,4475.4,2.48020447]
[1756402440352,3.2078,4476.2,4475.5,0.7035]
[1756402440552,3.7118,4476.2,4476.1,0.4814]
[1756402440745,3.7118,4476.2,4475.4,0.7035]
[1756402440746,1.00524,4476.0,4475.4,0.7035]
[1756402440951,1.65506,4475.2,4475.1,4.3927]
[1756402441152,1.65506,4475.2,4475.1,1.1849]
[1756402441347,1.2529,4475.2,4474.2,3.2078]
[1756402441546,1.2529,4474.3,4474.1,0.10281282]
[1756402441744,0.504,4474.3,4474.2,1.1849]
[1756402441946,0.40225,4474.2,4474.1,0.10281282]
[1756402442151,5.08645,4474.2,4474.1,0.10281282]
[1756402442354,4.86295,4474.2,4474.1,0.10281282]
[1756402442753,1.65515,4474.2,4474.1,1.28771282]
[1756402442953,0.40224,4474.4,4474.1,1.28771282]
[1756402443159,1.2529,4475.1,4475.0,0.4814]
[1756402443451,1.2529,4475.1,4475.0,1.1849]
[1756402443655,0.7489,4475.7,4475.0,1.1849]
[1756402443852,0.40213,4475.6,4475.0,1.1849]
[1756402444153,3.2078,4476.3,4475.7,0.7035]
[1756402444351,0.7489,4476.3,4476.2,1.1849]
[1756402444547,1.2529,4476.3,4476.2,1.1849]
[1756402444847,0.9723,4476.3,4475.1,3.2078]
[1756402445152,0.4022,4474.7,4474.6,0.4814]